Cogmind - Beta 17.1 @@@ ROGUE MODE // 2026.08.26 @ 11:56:39 Player: LandRaider Result: Destroyed by G-34 Mercenary with Small Laser Performance ------------- Evolutions (0) 0 Regions Visited (1) 200 Robots Destroyed (27) 135 Value Destroyed (603) 603 Prototype IDs (0) 0 Alien Tech Used (0) 0 Bonus (0) 0 TOTAL SCORE: 938 Bonus ------- None Cogmind --------- Core Integrity 0/250 Matter 286/300 Energy 250/250 System Corruption 0% Temperature Cool (6) Movement Walking (260) Ox2 Location -10/Materials Parts ------- > --- POWER (1) -------- Ion Engine > --- PROPULSION (2) --- Aluminum Leg Aluminum Leg > --- UTILITY (2) ------ Heat Sink High-capacity Storage Unit > --- WEAPON (2) ------- Light Assault Rifle Light Assault Rifle > --- INVENTORY (20) --- Ion Engine Light Ion Engine Light Treads Light Treads Aluminum Leg Aluminum Leg Aluminum Leg Armored Wheel Armored Wheel Armored Wheel Armored Wheel Seismic Detector Seismic Detector Targeting Computer Light Armor Plating Light Armor Plating Small Laser Peak State ------------ > --- POWER ------------ Ion Engine > --- PROPULSION ------- Light Treads Light Treads > --- UTILITY ---------- High-capacity Storage Unit Seismic Detector > --- WEAPON ----------- Medium Laser Small Laser > --- INVENTORY -------- Ion Engine Light Ion Engine Light Ion Engine Aluminum Leg Aluminum Leg Armored Wheel Armored Wheel Armored Wheel Armored Wheel Seismic Detector Targeting Computer Light Armor Plating Light Armor Plating EM Pulse Gun Light Assault Rifle Light Assault Rifle [Rating: 9] Favorites ----------- Power Ion Engine Engine Ion Engine Propulsion Light Treads Treads Light Treads Leg Aluminum Leg Utility High-capacity Storage Unit Device Seismic Detector Storage High-capacity Storage Unit Weapon Small Laser Energy Gun Small Laser Ballistic Gun Light Assault Rifle Build | -11 -10 ------- Run | Yrd Mat Slots Evolved . | . . Power . | . . Propulsion . | . . Utility . | . . Weapon . | . . Parts Attached 17 | 7 10 Power 4 | 1 3 Engine 4 | 1 3 Core . | . . Reactor . | . . Propulsion 4 | 2 2 Treads 2 | . 2 Leg 2 | 2 . Wheel . | . . Hover . | . . Flight . | . . Utility 4 | 2 2 Device 2 | 1 1 Storage 2 | 1 1 Processor . | . . Hackware . | . . Protection . | . . Artifact . | . . Weapon 5 | 2 3 Energy Gun 3 | 2 1 Energy Cannon . | . . Ballistic Gun 2 | . 2 Ballistic Cannon . | . . Launcher . | . . Special Weapon . | . . Impact Weapon . | . . Slashing Weapon . | . . Piercing Weapon . | . . Special Melee Weapon . | . . Unidentified Prototypes . | . . Parts Lost 5 | . 5 Power 1 | . 1 Propulsion 1 | . 1 Utility . | . . Weapon 3 | . 3 Highest Loss Streak 2 | . 2 To Critical Strikes . | . . Average Backups 14 | 5 14 Power 2 | . 2 Propulsion 6 | 3 6 Utility 3 | . 3 Weapon 1 | . 1 Tool/Special . | . . Unused Backups 17 | . 17 Power 1 | . 1 Propulsion 11 | . 11 Utility 4 | . 4 Weapon 1 | . 1 Tool/Special . | . . Average Slot Usage (%) 99 | . 99 Engine 13 | . 13 Treads 18 | . 18 Leg 9 | . 9 Device 14 | . 14 Storage 14 | . 14 Energy Gun 18 | . 18 Ballistic Gun 9 | . 9 Peak Build Rating 9 | 7 9 Average Rating 8 | 5 8 On Entrance 3 | . 7 Avg Prop Armor Cover (%) . | . . Naked Turns . | . . Heaviest Build 49 | 12 49 Greatest Support 40 | 20 40 Greatest Overweight (x) 2 | 1 2 Average Overweight (x) 1 | . 1 Largest Inventory Capacity 20 | 8 20 Average Capacity 18 | 7 19 Most Carried 20 | 7 20 Average Carried 14 | 5 14 Final Capacity 20 | 8 20 Final Carried 17 | 7 17 Class Distribution -------------------- 100% | Mutant Dominant Class ---------------- Mutant | -10/Materials Resources | -11 -10 ----------- Run | Yrd Mat Matter Collected 423 | 270 153 Remotely . | . . Salvage Created 870 | 108 762 Parts 45 | 8 37 Haulers Intercepted 2 | . 2 Recyclers Shooed . | . . Parts Field Recycled . | . . Retrieved Matter . | . . Parts Self-Destructed . | . . Prevented . | . . Parts Restored . | . . Kills | -11 -10 ------- Run | Yrd Mat Combat Hostiles Destroyed 17 | . 17 Guns 16 | . 16 Classes Destroyed 8 | 3 5 Worker 1 | 1 . Tunneler 2 | 2 . Hauler 2 | . 2 Recycler 1 | 1 . Operator 1 | . 1 Watcher 3 | . 3 Swarmer 5 | . 5 Grunt 12 | . 12 Best Kill Streak 3 | 3 3 Combat Bots Only 3 | . 3 Max Kills in Single Turn 1 | 1 1 Gunslinging . | . . Exploded . | . . Melee . | . . Uniques/NPCs Destroyed . | . . Combat | -11 -10 -------- Run | Yrd Mat Hostile Shots Fired 122 | . 122 Missed 29 | . 29 Hits 93 | . 93 Projectile 93 | . 93 Critical Strikes 1 | . 1 Damage Taken 1047 | . 1047 Core 250 | . 250 Absorbed by Shields . | . . Core Remaining (%) 100 | 100 . Volleys Fired 106 | 11 95 Largest 2 | 2 2 Hottest 90 | 90 90 Shots Fired 207 | 22 185 Gun 207 | 22 185 Cannon . | . . Launcher . | . . Special . | . . Kinetic 60 | . 60 Thermal 141 | 22 119 Explosive . | . . Electromagnetic 6 | . 6 Robot Hit Streak 14 | 4 14 Robot Miss Streak 4 | 3 4 Penetration Max . | . . Secondary Targets 1 | . 1 Max Gunslinging Chain 1 | . 1 Shots Hit Robots 125 | 12 113 Core Hits 51 | 5 46 Critical Kills . | . . Critical Parts Destroyed . | . . Critical Strikes 6 | . 6 Burn 6 | . 6 Melee Attacks . | . . Impact . | . . Slashing . | . . Piercing . | . . Sneak Attacks . | . . Combat Hostiles . | . . Follow-up Attacks . | . . Damage Inflicted 1449 | 146 1303 Guns 1329 | 146 1183 Cannons . | . . Explosions 120 | . 120 Melee . | . . Ramming . | . . Kinetic 369 | . 369 Thermal 963 | 146 817 Explosive . | . . Electromagnetic 117 | . 117 Impact . | . . Slashing . | . . Piercing . | . . Highest Corruption . | . . Average Corruption . | . . Corruption Purged . | . . Corruption Blocked . | . . Overload Shots . | . . Overflow Damage 8 | . 8 Projectiles . | . . Explosions 8 | . 8 Melee . | . . Knockbacks . | . . Impact . | . . Kinetic . | . . Secondary . | . . Self-Inflicted Damage 33 | . 33 Shots 1 | . 1 Rammed . | . . Targets Rammed . | . . Kicked . | . . Crushed . | . . Highest Temperature 374 | 120 374 Average Temperature 95 | 47 104 Received Heat Transfer 465 | . 465 Effects 2 | . 2 Energy Bleed 2 | . 2 Siege Activations . | . . Martial Activations . | . . Shielding Activations . | . . Robots Disrupted . | . . Combat Hostiles . | . . Robots Corrupted . | . . Combat Hostiles . | . . Parts Fried 1 | . 1 Impact Corruptions . | . . Robots Melted 1 | . 1 Combat Hostiles 1 | . 1 Parts Melted 10 | . 10 Heat Transferred 2889 | 384 2505 Parts Sabotaged . | . . Parts Stolen . | . . Parts Stripped . | . . Power Chain Reactions 1 | . 1 Alert | -11 -10 ------- Run | Yrd Mat Maximum Alert Level . | . . Low Security (%) 100 | 100 100 Level 1 . | . . Level 2 . | . . Level 3 . | . . Level 4 . | . . Level 5 . | . . High Security . | . . Max Security . | . . Peak Influence 98 | 5 98 Initial 3 | . 3 Average 45 | 1 48 Influence Increases 586 | 20 566 Destroy 0b10 Robot/C 340 | . 340 Destroy 0b10 Robot/NC 50 | 20 30 Destroy Leader 70 | . 70 Successful Hack 17 | . 17 Select Force Hacks 30 | . 30 Disable Machine 45 | . 45 Destroy Structure 4 | . 4 Lose Combat Pursuer 30 | . 30 Influence Decreases 501 | 15 486 Entered New Map 2 | . 2 Time Decay 449 | 15 434 Lost Part 50 | . 50 Squads Dispatched 3 | . 3 Investigation 1 | . 1 Extermination . | . . Reinforcement 2 | . 2 Assault . | . . Garrison . | . . Intercept . | . . Searches Triggered . | . . Construction Impeded . | . . Haulers Reinforced . | . . Active Scanning Responses . | . . Cargo Convoy Interrupts . | . . Stealth | -11 -10 --------- Run | Yrd Mat Distress Signals 2 | . 2 Communications Jammed . | . . Distress Signals . | . . Times Spotted 29 | . 29 Peak Tracking Total 5 | . 5 Tactical Retreats 2 | . 2 Traps | -11 -10 ------- Run | Yrd Mat Traps Triggered . | . . Indirectly . | . . Trap Hack Attempts . | . . Triggered . | . . Disarmed . | . . Reprogrammed . | . . Reused . | . . Traps Extracted . | . . Installed . | . . Triggered . | . . Machines | -11 -10 ---------- Run | Yrd Mat Machines Disabled 3 | . 3 Max in Single Turn 3 | . 3 Machines Repaired . | . . Machines Dismantled . | . . Machines Sabotaged . | . . Overloaded Fab Kills . | . . Hacking | -11 -10 --------- Run | Yrd Mat Machines Accessed 3 | . 3 Terminals 2 | . 2 Fabricators . | . . Repair Stations . | . . Recycling Units 1 | . 1 Scanalyzers . | . . Garrison Access . | . . Total Hacks 10 | . 10 Successful 6 | . 6 Failed 4 | . 4 Catastrophic 1 | . 1 Database Lockouts . | . . Manual 5 | . 5 Terminals 9 | . 9 Fabricators . | . . Repair Stations . | . . Recycling Units 1 | . 1 Scanalyzers . | . . Garrison Access . | . . Terminal Hacks 3 | . 3 Record 1 | . 1 Robot Analysis 1 | . 1 Surveillance Status 1 | . 1 Fabricator Hacks . | . . Repair Station Hacks . | . . Recycling Unit Hacks . | . . Scanalyzer . | . . Garrison Access Hacks . | . . Unauthorized Hacks 3 | . 3 Terminals 2 | . 2 Botnet 2 | . 2 Fabricators . | . . Repair Stations . | . . Recycling Units 1 | . 1 Tunnel 1 | . 1 Scanalyzers . | . . Garrison Access . | . . Data Cores Recovered . | . . Used . | . . Hacking Detections 2 | . 2 Full Trace Events . | . . Feedback Events . | . . Feedback Blocked . | . . Robot Schematics Acquired . | . . Robots Built . | . . Authchips . | . . Time . | . . Total Robot Build Rating . | . . Part Schematics Acquired . | . . Parts Built . | . . Authchips . | . . Time . | . . Total Part Build Rating . | . . Part Studies Acquired . | . . Parts Repaired . | . . Time . | . . Parts Recycled . | . . Recycled Matter . | . . Retrieved Matter . | . . Retrieved Components . | . . Parts Scanalyzed . | . . Part Schematics Acquired . | . . Parts Damaged . | . . Bothacking | -11 -10 ------------ Run | Yrd Mat Used RIF Installer . | . . Robots Hacked . | . . Non-combat . | . . Combat . | . . Robot Hacks Applied . | . . Relay Couplers Released . | . . Fabnet Peak Effective % . | . . Robots Rewired . | . . Allies Hacked . | . . Hacks Repelled . | . . Allies | -11 -10 -------- Run | Yrd Mat Total Allies . | . . Largest Group . | . . Highest-Rated Group . | . . Highest-Rated Ally . | . . Total Orders . | . . Ally Attacks . | . . Total Damage . | . . Kills . | . . Allies Corrupted . | . . Allies Melted . | . . Intel | -11 -10 ------- Run | Yrd Mat Active Infowar (turns) 907 | 37 870 Seismic 907 | 37 870 Robot Analysis Total 1 | . 1 Derelict Logs Recovered . | . . Drone Launches . | . . Drone Recoveries . | . . Exploration | -11 -10 ------------- Run | Yrd Mat Turns Passed 1570 | 112 1458 Spaces Moved 545 | 54 491 Core 9 | 9 . Treads 308 | . 308 Legs 228 | 45 183 Wheels . | . . Hover . | . . Flight . | . . Fastest Speed 50 | 50 120 Average Speed 219 | 115 230 Slowest Speed 320 | 190 320 Overloaded Moves . | . . Propulsion Burnouts . | . . Robots Hopped . | . . Potential Cave-ins . | . . Cave-ins Triggered . | . . Exploration Rate (%) 34 | 5 64 Regions Visited 1 Branch Regions . Pre-discovered Areas 1 | . 1 Known Exits Taken . | . . Unknown Exits Taken 1 | 1 . Scrap Searched . | . . Spaces Dug . | . . Terrain Destroyed 2 | . 2 Melee . | . . Projectile . | . . AOE 2 | . 2 Terrain Rammed . | . . Walls Destroyed . | . . Machines Disabled . | . . Actions | -11 -10 --------- Run | Yrd Mat Total 723 | 78 645 Wait 25 | . 25 Move 544 | 53 491 Hop . | . . Pick Up 23 | 7 16 Fast Attach 8 | 7 1 Attach 5 | . 5 Detach 1 | . 1 Swap 6 | . 6 Drop 5 | . 5 Fire 106 | 11 95 Melee . | . . Ram . | . . Kick . | . . Crush . | . . Escape Stasis . | . . Rewire . | . . Trap . | . . Miscellaneous . | . . Route ------- -11/Scrapyard -10/Materials (discovered 3 exits: [*Mat] / [*Min x2]) History --------- Turn | Location | Event 9 | -11/Scrapyard | Discovered new exit (range 15) 113 | -11/Scrapyard | Entered Materials 307 | -10/Materials | Build established: Mutant 715 | -10/Materials | Discovered new exit (range 16) 900 | -10/Materials | Discovered new exit (range 16) 1165 | -10/Materials | Core integrity fell below 50% 1240 | -10/Materials | Discovered new exit (range 5) 1244 | -10/Materials | Core integrity fell below 20% 1571 | -10/Materials | Destroyed by G-34 Mercenary with Small Laser Last Messages --------------- X-series specialists each possess unique loadouts for a specific purpose. With remarkable sprinting speed made possible by legs built around a system of variable stiffness springs, the limited range of the X-57 Shotgunner's armament is little disadvantage in combat. Despite the relative range gap between their two shotguns, this works to their advantage by pinning less aggressive targets not eager to enter the X-57's optimal range, giving other units an opportunity to flank them. >>Trojan(Botnet) Trojan loaded successfully. Testing... Terminal linked with 1 system. Awaiting botnet instructions. >>Enumerate(Surveillance) Retrieving latest reported positions... No active surveillance squads found. 01367_ U-05 Engineer works on Processing Tank. 01486_ A-02 Transporter destroyed. 01501_ Acquired Lgt. Treads. 01505_ Acquired 12 matter. 01557_ G-47 Trooper destroyed. Map ----- +----------------------------------------------------+ | ??????# %#= """#????# #??????# #? ????? | | ??????# =*# ! #????# #??????# #?"" #???? | | ??????# # #???## ######## # "" #???? | | ??????# ########???# # "" #???? | | ??????# #??????????# + "" #???? | | ??????# #???#####??# # " #???? | | ??????# #???# ?# ######## ## #???? | | ??????# #???# ?# #??#####+##? #???? | | ??????# ! #???# """ # #? #?#########???? | | ???####% #???# """ # # #?????????????? | | ??##! #???# """ =+ + #?????????????? | | ??#! #???# #% # #?????????????? | | ??#! ######+##### ###########?????????????? | | ??#! ## # """#????????????????????? | | ??#! ## """ =# "#????????????????????? | | ??##! ## "T" # |"#????????????????????? | | ???#### ## # < ""#????????????????????? | | ??????# ## # !"#????????????????????? | | ??????# ## % # "#????????????????????? | | ??????# ## =[%=# """#????????????????????? | | ####### #######+#### ####????????????????????? | | # ! = #???????????????????????? | | # ^^ ###########?????? #????? | | #! ## #### ? | | " """ # ^ ^ ^ ## """ + " ?? | | " """ # """ @#! """ #### ? | | " """ # """ =g#!!""" #?????????????? | | + """ " /%! #?????????????? | | # T" #!*""" #?????????????? | | ####### """ # """ #?????????????? | | ?????## # ######## """ #?????????????? | | #????# %### # #?????????????? | | #????# #?# """ ###########????????????? | | #????# % #?# """ # #????????????? | | #????# #?# """ # ?????????????? | | #????# #?? # ???????????????? | | #??########### #???? # ?????????????????? | | #??# # #######+####+##?????????????????? | | #??# # % #?????????????????? | | #??# + % % #########?????????? | | #??# # ^ # !!! #?########? | | #??# #########+##### + #?#!!!! #? | | #??# #??# =!%% ## # !! #?#!!!! #? | | #??# #??# """ ## #########?# #? | | #??# #??# """"" ## ########### ## | | #??###########??# """""%## # | | #???????????????# """"" + # | | ????????????????# """ ## # | | ????????????????# #####+################## | | ????????????????# # #????????????? | +----------------------------------------------------+ Best States ------------- Heat Dissipation 35 Energy Generation 10 Energy Capacity 250 Matter Stores 300 Matter Capacity 300 Sight Range 16 Terrain Scan Density 10 Evasion (%) 55 Recoil Reduction 2 Item Schematics ----------------- None Robot Schematics ------------------ None Fabricated ------------ Nothing Repaired ---------- Nothing Studied --------- None Alien Tech Used ----------------- None Achievements -------------- None Challenges ------------ None Game ------ Seed MolecularBombardmentFocus Manual? 0 Play Time 00:10:42 Cumulative 111.0 hours Start 2026.08.26 @ 11:45:34 End 2026.08.26 @ 11:56:39 Sessions 1 Manual Loads 0 Difficulty Rogue Special Mode None Game No. 101 Rogue 99 Adventurer 2 Explorer 0 Win Type - Total 0 Types 0/0/0/0/0/0/0/0/0/0 Lore% 47 Gallery% 44 Achievement% 35 Wizard Run 0 Options --------- Layout 0 ASCII 0 Keyboard 0 Movement Mouse Keybinds 0 Fullscreen 2 Font 24/Smallcaps Map View 76x50 Zoom Use 0% Tactical HUD 1 Map Filters NONE Filters NONE Steam 1 RUN: 52120555-0696-4d21-8d06-04eaf3198894